[Event "FIDE WSTC Open 65 2025"]
[Site "Prague"]
[Date "2025.02.20"]
[Round "4.40"]
[White "Blokhin, Alexey"]
[Black "Raitza, Olaf"]
[Result "1/2-1/2"]
[Annotator "NA"]
[ECO "B03"]
[WhiteElo "1829"]
[BlackElo "2037"]
[PlyCount "100"]
[EventDate "2025.02.17"]
[EventType "team-tourn"]
[EventCountry "CZE"]
[SourceTitle "playchess.com"]
[Source "ChessBase"]
[SourceQuality "1"]
[TimeControl "40/5400+30:1800+30"]

1. e4 {[%emt 0:00:03]} Nf6 {[%emt 0:00:05]} 2. e5 {[%emt 0:00:05]} Nd5 {[%emt 0:00:06]} 3. c4 {[%emt 0:00:07]} Nb6 {[%emt 0:00:05]} 4. d4 {[%emt 0:00:12]} d6 {[%emt 0:00:08]} 5. exd6 {[%emt 0:00:15]} exd6 {[%emt 0:00:08]} 6. Nc3 {[%emt 0:00:12]} Be7 {[%emt 0:00:30]} 7. Nf3 {[%emt 0:00:43]} O-O {[%emt 0:00:33]} 8. Be2 {[%emt 0:00:12]} Be6 {[%emt 0:01:13]} 9. d5 {[%emt 0:04:19]} Bf5 {[%emt 0:00:04]} 10. O-O {[%emt 0:00:40]} Bf6 {[%emt 0:00:50]} 11. Nd4 {[%emt 0:01:42]} Bxd4 {[%emt 0:02:33]} 12. Qxd4 {[%emt 0:00:08]} N8d7 {[%emt 0:00:22]} 13. b3 {[%emt 0:01:21]} Qf6 {[%emt 0:02:46]} 14. Qxf6 {[%emt 0:01:28]} Nxf6 {[%emt 0:00:01]} 15. Nb5 {[%emt 0:00:26]} a6 {[%emt 0:01:26]} 16. Nd4 {[%emt 0:06:43]} Bd7 {[%emt 0:18:24]} 17. h3 {[%emt 0:04:46]} Rae8 {[%emt 0:10:16]} 18. Bd3 {[%emt 0:03:14]} h6 {[%emt 0:00:45]} 19. Bd2 {[%emt 0:05:53]} Re7 {[%emt 0:17:19]} 20. Rfe1 {[%emt 0:00:57]} Rfe8 {[%emt 0:00:11]} 21. Rxe7 {[%emt 0:00:11]} Rxe7 {[%emt 0:00:08]} 22. Re1 {[%emt 0:00:43]} Nc8 {[%emt 0:08:23]} 23. Rxe7 {[%emt 0:04:49]} Nxe7 {[%emt 0:00:27]} 24. Ba5 {[%emt 0:00:30]} b6 {[%emt 0:00:44]} 25. Bd2 {[%emt 0:00:44]} Bc8 {[%emt 0:06:41]} 26. f4 {[%emt 0:03:42]} h5 {[%emt 0:01:47]} 27. Kf2 {[%emt 0:00:12]} g6 {[%emt 0:01:58]} 28. Ke3 {[%emt 0:02:14]} Bf5 {[%emt 0:03:16]} 29. Be2 {[%emt 0:05:49]} Bb1 {[%emt 0:01:24]} 30. a3 {[%emt 0:01:42]} Nf5+ {[%emt 0:03:02]} 31. Nxf5 {[%emt 0:00:47]} Bxf5 {[%emt 0:00:07]} 32. Bc3 {[%emt 0:01:42]} Nd7 {[%emt 0:06:10]} 33. g4 {[%emt 0:02:03]} hxg4 {[%emt 0:00:47]} 34. hxg4 {[%emt 0:00:02]} Bc2 {[%emt 0:00:15]} 35. b4 {[%emt 0:00:08]} f5 {[%emt 0:01:12]} 36. g5 {[%emt 0:02:56]} Be4 {[%emt 0:00:44]} 37. Kd4 {[%emt 0:05:16]} Kf7 {[%emt 0:00:25]} 38. Bd2 {[%emt 0:00:30]} Ke7 {[%emt 0:00:59]} 39. Be3 {[%emt 0:01:01]} Kf7 {[%emt 0:00:29]} 40. Bd1 {[%emt 0:00:16]} Ke7 {[%emt 0:02:30]} 41. Ba4 {[%emt 0:30:49]} Bf3 {[%emt 0:38:52]} 42. Bd2 {[%emt 0:02:24]} Be2 {[%emt 0:00:00]} 43. Bc6 {[%emt 0:00:00]} Nb8 {[%emt 0:00:00]} 44. Bb7 {[%emt 0:00:00]} Kd7 {[%emt 0:00:00]} 45. a4 {[%emt 0:00:00]} Bf3 {[%emt 0:00:00]} 46. c5 {[%emt 0:00:00]} b5 {[%emt 0:00:00]} 47. axb5 {[%emt 0:00:00]} axb5 {[%emt 0:00:00]} 48. Ke3 {[%emt 0:00:00]} Be4 {[%emt 0:00:00]} 49. c6+ {[%emt 0:00:00]} Kd8 {[%emt 0:00:00]} 50. Kd4 {[%emt 0:00:00]} Bg2 {[%emt 0:00:50]} 1/2-1/2

[Event "FIDE WSTC Open 65 2025"]
[Site "Prague"]
[Date "2025.02.20"]
[Round "4.41"]
[White "Roos, Jean-Luc"]
[Black "Urban, Zdenek"]
[Result "1-0"]
[Annotator "ChessBase"]
[ECO "B33"]
[WhiteElo "2165"]
[BlackElo "2155"]
[PlyCount "73"]
[EventDate "2025.02.17"]
[EventType "team-tourn"]
[EventCountry "CZE"]
[SourceTitle "playchess.com"]
[Source "ChessBase"]
[SourceQuality "1"]
[TimeControl "40/5400+30:1800+30"]

1. e4 {[%emt 0:00:04]} c5 {[%emt 0:04:13]} 2. Nf3 {[%emt 0:00:17]} Nc6 {[%emt 0:00:07]} 3. d4 {[%emt 0:00:42]} cxd4 {[%emt 0:00:07]} 4. Nxd4 {[%emt 0:00:06]} Nf6 {[%emt 0:00:05]} 5. Nc3 {[%emt 0:00:08]} e5 {[%emt 0:00:03]} 6. Ndb5 {[%emt 0:00:15]} d6 {[%emt 0:00:11]} 7. Bg5 {[%emt 0:00:16]} a6 {[%emt 0:00:22]} 8. Na3 {[%emt 0:00:26]} b5 {[%emt 0:06:26]} 9. Nd5 {[%emt 0:00:58]} Be6 {[%emt 0:02:16]} 10. c4 {[%emt 0:08:00]} b4 {[%emt 0:11:57]} 11. Nc2 {[%emt 0:18:28]} Be7 {[%emt 0:00:56]} 12. Nxe7 {[%emt 0:03:40]} Kxe7 {[%emt 0:00:13]} 13. Bd3 {[%emt 0:02:08]} h6 {[%emt 0:02:55]} 14. Be3 {[%emt 0:02:55]} Qc7 {[%emt 0:01:28]} 15. O-O {[%emt 0:00:57]} g5 {[%emt 0:00:50]} 16. Bd2 {[%emt 0:04:07]} Qb7 {[%emt 0:06:37]} 17. Ne3 {[%emt 0:01:31]} Nd4 {[%emt 0:01:17]} 18. Re1 {[%emt 0:04:57]} a5 {[%emt 0:03:08]} 19. Nd5+ {[%emt 0:05:33]} Nxd5 {[%emt 0:00:45]} 20. exd5 {[%emt 0:00:33]} Bf5 {[%emt 0:01:34]} 21. Be3 {[%emt 0:00:48]} Bxd3 {[%emt 0:05:00]} 22. Qxd3 {[%emt 0:00:04]} Kf6 {[%emt 0:00:09]} 23. Bxd4 {[%emt 0:00:37]} exd4 {[%emt 0:00:06]} 24. Qxd4+ {[%emt 0:00:40]} Kg6 {[%emt 0:00:04]} 25. Re4 {[%emt 0:03:01]} Rhe8 {[%emt 0:01:43]} 26. Rae1 {[%emt 0:00:21]} Rxe4 {[%emt 0:01:16]} 27. Qxe4+ {[%emt 0:00:08]} Kg7 {[%emt 0:01:34]} 28. h4 {[%emt 0:00:22]} Qd7 {[%emt 0:00:28]} 29. hxg5 {[%emt 0:04:07]} hxg5 {[%emt 0:03:00]} 30. Re3 {[%emt 0:00:35]} Rh8 {[%emt 0:01:01]} 31. Qd4+ {[%emt 0:01:05]} Kg8 {[%emt 0:00:34]} 32. Qf6 {[%emt 0:06:24]} Rh7 {[%emt 0:00:36]} 33. Re7 {[%emt 0:01:53]} Qc8 {[%emt 0:03:46]} 34. c5 {[%emt 0:03:34]} Kf8 {[%emt 0:01:28]} 35. Qxd6 {[%emt 0:01:33]} Kg8 {[%emt 0:00:23]} 36. Rd7 {[%emt 0:01:17]} Kg7 {[%emt 0:02:11]} 37. Qe5+ {[%emt 0:00:17]} 1-0

[Event "FIDE WSTC Open 65 2025"]
[Site "Prague"]
[Date "2025.02.20"]
[Round "4.42"]
[White "Sejkora, Vlastimil"]
[Black "Boulard, Eric"]
[Result "1/2-1/2"]
[Annotator "ChessBase"]
[ECO "C67"]
[WhiteElo "2121"]
[BlackElo "2162"]
[PlyCount "20"]
[EventDate "2025.02.17"]
[EventType "team-tourn"]
[EventCountry "CZE"]
[SourceTitle "playchess.com"]
[Source "ChessBase"]
[SourceQuality "1"]
[TimeControl "40/5400+30:1800+30"]

1. e4 {[%emt 0:06:24]} e5 {[%emt 0:00:37]} 2. Nf3 {[%emt 0:01:34]} Nc6 {[%emt 0:00:11]} 3. Bb5 {[%emt 0:00:02]} Nf6 {[%emt 0:00:41]} 4. O-O {[%emt 0:00:48]} Nxe4 {[%emt 0:00:35]} 5. Qe2 {[%emt 0:00:16]} Nd6 {[%emt 0:04:00]} 6. Bxc6 {[%emt 0:00:11]} dxc6 {[%emt 0:00:09]} 7. Qxe5+ {[%emt 0:00:40]} Qe7 {[%emt 0:00:43]} 8. Qa5 {[%emt 0:00:18]} Qd8 {[%emt 0:01:08]} 9. Qe5+ {[%emt 0:13:29]} Qe7 {[%emt 0:00:06]} 10. Qa5 {[%emt 0:00:03]} Qd8 {[%emt 0:00:04]} 1/2-1/2

[Event "FIDE WSTC Open 65 2025"]
[Site "Prague"]
[Date "2025.02.20"]
[Round "4.43"]
[White "Fayard, Alain"]
[Black "Mlynek, Petr"]
[Result "1/2-1/2"]
[Annotator "NA"]
[ECO "A90"]
[WhiteElo "2117"]
[BlackElo "2023"]
[PlyCount "53"]
[EventDate "2025.02.17"]
[EventType "team-tourn"]
[EventCountry "CZE"]
[SourceTitle "playchess.com"]
[Source "ChessBase"]
[SourceQuality "1"]
[TimeControl "40/5400+30:1800+30"]

1. d4 {[%emt 0:00:04]} d5 {[%emt 0:00:21]} 2. c4 {[%emt 0:00:23]} c6 {[%emt 0:04:55]} 3. Nf3 {[%emt 0:00:29]} e6 {[%emt 0:00:24]} 4. Nc3 {[%emt 0:00:30]} f5 {[%emt 0:00:26]} 5. g3 {[%emt 0:03:43]} Nf6 {[%emt 0:00:28]} 6. Bg2 {[%emt 0:01:45]} Bd6 {[%emt 0:00:30]} 7. O-O {[%emt 0:01:09]} O-O {[%emt 0:00:10]} 8. b3 {[%emt 0:05:48]} Nbd7 {[%emt 0:00:28]} 9. a4 {[%emt 0:02:15]} Qe7 {[%emt 0:05:52]} 10. Bb2 {[%emt 0:01:06]} b6 {[%emt 0:01:24]} 11. a5 {[%emt 0:07:04]} Ba6 {[%emt 0:01:08]} 12. Nd2 {[%emt 0:01:01]} b5 {[%emt 0:01:44]} 13. Qc2 {[%emt 0:17:25]} bxc4 {[%emt 0:03:02]} 14. bxc4 {[%emt 0:00:22]} Rab8 {[%emt 0:00:24]} 15. Rfe1 {[%emt 0:02:03]} Rb7 {[%emt 0:06:41]} 16. Ra2 {[%emt 0:01:04]} Rfb8 {[%emt 0:01:15]} 17. Ba1 {[%emt 0:00:16]} Ne4 {[%emt 0:03:54]} 18. c5 {[%emt 0:05:51]} Bc7 {[%emt 0:00:33]} 19. f3 {[%emt 0:07:55]} Nxd2 {[%emt 0:10:42]} 20. Qxd2 {[%emt 0:00:03]} e5 {[%emt 0:01:28]} 21. Nxd5 {[%emt 0:05:40]} cxd5 {[%emt 0:02:52]} 22. c6 {[%emt 0:00:22]} Rb1 {[%emt 0:00:58]} 23. cxd7 {[%emt 0:00:52]} e4 {[%emt 0:02:46]} 24. Rb2 {[%emt 0:09:08]} R8xb2 {[%emt 0:08:15]} 25. Bxb2 {[%emt 0:00:38]} Rxe1+ {[%emt 0:00:08]} 26. Qxe1 {[%emt 0:00:51]} Qxd7 {[%emt 0:00:04]} 27. Bc3 {[%emt 0:04:07]} 1/2-1/2

[Event "FIDE WSTC Open 65 2025"]
[Site "Prague"]
[Date "2025.02.20"]
[Round "4.44"]
[White "Papay, Jindrich"]
[Black "Pivard, Jean-Louis"]
[Result "1/2-1/2"]
[Annotator "ChessBase"]
[ECO "A03"]
[WhiteElo "1937"]
[BlackElo "1970"]
[PlyCount "90"]
[EventDate "2025.02.17"]
[EventType "team-tourn"]
[EventCountry "CZE"]
[SourceTitle "playchess.com"]
[Source "ChessBase"]
[SourceQuality "1"]
[TimeControl "40/5400+30:1800+30"]

1. f4 {[%emt 0:29:54]} d5 {[%emt 0:00:54]} 2. Nf3 {[%emt 0:01:37]} Nf6 {[%emt 0:00:08]} 3. g3 {[%emt 0:00:04]} g6 {[%emt 0:00:06]} 4. Bg2 {[%emt 0:00:05]} Bg7 {[%emt 0:00:05]} 5. O-O {[%emt 0:00:24]} O-O {[%emt 0:01:40]} 6. d3 {[%emt 0:04:24]} c5 {[%emt 0:01:31]} 7. c3 {[%emt 0:00:07]} Nc6 {[%emt 0:01:04]} 8. Na3 {[%emt 0:00:05]} Rb8 {[%emt 0:08:35]} 9. Ne5 {[%emt 0:10:47]} Bf5 {[%emt 0:32:59]} 10. Nc2 {[%emt 0:08:26]} Qb6 {[%emt 0:08:28]} 11. Ne3 {[%emt 0:06:48]} Be6 {[%emt 0:07:14]} 12. Nxc6 {[%emt 0:03:56]} bxc6 {[%emt 0:00:57]} 13. f5 {[%emt 0:00:26]} Bd7 {[%emt 0:01:43]} 14. g4 {[%emt 0:02:25]} Bh6 {[%emt 0:04:55]} 15. Nxd5 {[%emt 0:01:53]} cxd5 {[%emt 0:02:42]} 16. Bxh6 {[%emt 0:00:03]} Nxg4 {[%emt 0:00:31]} 17. Bf4 {[%emt 0:02:24]} Bxf5 {[%emt 0:05:27]} 18. h3 {[%emt 0:04:38]} c4+ {[%emt 0:01:43]} 19. d4 {[%emt 0:00:29]} Nf6 {[%emt 0:01:04]} 20. Bxb8 {[%emt 0:09:35]} Rxb8 {[%emt 0:00:09]} 21. Rxf5 {[%emt 0:00:04]} gxf5 {[%emt 0:00:16]} 22. Rb1 {[%emt 0:00:15]} Qe6 {[%emt 0:01:52]} 23. Qd2 {[%emt 0:01:06]} Kh8 {[%emt 0:00:11]} 24. Qf4 {[%emt 0:05:26]} Nd7 {[%emt 0:02:35]} 25. Kf2 {[%emt 0:00:37]} Rg8 {[%emt 0:00:16]} 26. Bf3 {[%emt 0:01:05]} Qg6 {[%emt 0:01:16]} 27. Ke3 {[%emt 0:00:17]} e5 {[%emt 0:03:39]} 28. dxe5 {[%emt 0:00:33]} Re8 {[%emt 0:00:01]} 29. Kd2 {[%emt 0:02:54]} Rxe5 {[%emt 0:00:57]} 30. Rf1 {[%emt 0:00:28]} f6 {[%emt 0:03:05]} 31. Qd4 {[%emt 0:00:30]} Qh6+ {[%emt 0:01:17]} 32. Kc2 {[%emt 0:00:14]} Qe3 {[%emt 0:03:38]} 33. b3 {[%emt 0:02:12]} Nb6 {[%emt 0:01:37]} 34. Qxe3 {[%emt 0:01:39]} Rxe3 {[%emt 0:00:01]} 35. Kd2 {[%emt 0:00:20]} Re5 {[%emt 0:00:20]} 36. Rb1 {[%emt 0:00:24]} Kg7 {[%emt 0:00:51]} 37. bxc4 {[%emt 0:00:59]} dxc4 {[%emt 0:00:31]} 38. a4 {[%emt 0:00:06]} Ra5 {[%emt 0:00:40]} 39. Rb5 {[%emt 0:01:09]} Rxa4 {[%emt 0:01:09]} 40. Rxf5 {[%emt 0:00:05]} Nd7 {[%emt 0:02:01]} 41. Rb5 {[%emt 0:30:29]} Ne5 {[%emt 0:30:26]} 42. Be4 {[%emt 0:00:00]} Ng6 {[%emt 0:00:00]} 43. h4 {[%emt 0:00:00]} Nxh4 {[%emt 0:00:00]} 44. Rb7+ {[%emt 0:00:00]} Kh6 {[%emt 0:00:00]} 45. Rxh7+ {[%emt 0:00:00]} Kg5 {[%emt 0:00:00]} 1/2-1/2

[Event "FIDE WSTC Open 65 2025"]
[Site "Prague"]
[Date "2025.02.20"]
[Round "4.45"]
[White "Mojzis, Jaroslav"]
[Black "Houston, David"]
[Result "0-1"]
[Annotator "ChessBase"]
[ECO "E69"]
[WhiteElo "2089"]
[BlackElo "2235"]
[PlyCount "118"]
[EventDate "2025.02.17"]
[EventType "team-tourn"]
[EventCountry "CZE"]
[SourceTitle "playchess.com"]
[Source "ChessBase"]
[SourceQuality "1"]
[TimeControl "40/5400+30:1800+30"]

1. Nf3 {[%emt 0:02:12]} Nf6 {[%emt 0:00:41]} 2. g3 {[%emt 0:00:12]} g6 {[%emt 0:00:41]} 3. Bg2 {[%emt 0:00:10]} Bg7 {[%emt 0:00:19]} 4. O-O {[%emt 0:00:12]} O-O {[%emt 0:00:42]} 5. c4 {[%emt 0:00:27]} d6 {[%emt 0:03:28]} 6. d4 {[%emt 0:00:09]} c6 {[%emt 0:01:17]} 7. Nc3 {[%emt 0:00:16]} Nbd7 {[%emt 0:02:30]} 8. e4 {[%emt 0:00:14]} e5 {[%emt 0:01:31]} 9. Re1 {[%emt 0:00:42]} Qc7 {[%emt 0:06:19]} 10. h3 {[%emt 0:00:15]} a6 {[%emt 0:06:16]} 11. b3 {[%emt 0:19:34]} b6 {[%emt 0:09:49]} 12. Bb2 {[%emt 0:16:15]} Bb7 {[%emt 0:07:02]} 13. Rc1 {[%emt 0:03:23]} Rfe8 {[%emt 0:13:21]} 14. Rc2 {[%emt 0:04:51]} Rad8 {[%emt 0:05:33]} 15. Rce2 {[%emt 0:06:25]} h6 {[%emt 0:06:10]} 16. Qc2 {[%emt 0:00:56]} Nf8 {[%emt 0:09:09]} 17. d5 {[%emt 0:06:45]} c5 {[%emt 0:06:58]} 18. Bc1 {[%emt 0:02:21]} Kh7 {[%emt 0:01:50]} 19. Rf1 {[%emt 0:02:09]} Ng8 {[%emt 0:01:49]} 20. Nh2 {[%emt 0:03:59]} Bc8 {[%emt 0:02:38]} 21. Nf3 {[%emt 0:00:51]} Bd7 {[%emt 0:01:01]} 22. a4 {[%emt 0:00:41]} Rb8 {[%emt 0:00:29]} 23. Be3 {[%emt 0:01:39]} b5 {[%emt 0:01:47]} 24. axb5 {[%emt 0:02:02]} axb5 {[%emt 0:00:07]} 25. cxb5 {[%emt 0:00:14]} Bxb5 {[%emt 0:00:14]} 26. Nxb5 {[%emt 0:00:07]} Rxb5 {[%emt 0:00:06]} 27. Ra1 {[%emt 0:01:00]} Reb8 {[%emt 0:01:34]} 28. Nd2 {[%emt 0:00:23]} Ne7 {[%emt 0:01:39]} 29. Ree1 {[%emt 0:00:22]} f5 {[%emt 0:01:49]} 30. f3 {[%emt 0:03:08]} f4 {[%emt 0:03:39]} 31. Bf2 {[%emt 0:00:09]} fxg3 {[%emt 0:00:11]} 32. Bxg3 {[%emt 0:00:07]} g5 {[%emt 0:00:04]} 33. Ra6 {[%emt 0:04:28]} Nfg6 {[%emt 0:00:49]} 34. Rea1 {[%emt 0:00:32]} Nc8 {[%emt 0:00:27]} 35. Ra8 {[%emt 0:01:25]} Nf4 {[%emt 0:02:40]} 36. Bf1 {[%emt 0:00:47]} R5b7 {[%emt 0:01:02]} 37. R1a4 {[%emt 0:02:14]} Rxa8 {[%emt 0:01:12]} 38. Rxa8 {[%emt 0:00:09]} Nb6 {[%emt 0:00:09]} 39. Ra6 {[%emt 0:03:05]} h5 {[%emt 0:01:20]} 40. Qc3 {[%emt 0:09:16]} Qd7 {[%emt 0:00:50]} 41. Qa5 {[%emt 0:30:53]} Nc8 {[%emt 0:30:32]} 42. Kh2 {[%emt 0:00:00]} g4 {[%emt 0:00:00]} 43. fxg4 {[%emt 0:00:00]} hxg4 {[%emt 0:00:00]} 44. Qa4 {[%emt 0:00:00]} Qe7 {[%emt 0:00:00]} 45. Qa5 {[%emt 0:00:00]} Qg5 {[%emt 0:00:00]} 46. h4 {[%emt 0:00:00]} Qf6 {[%emt 0:00:00]} 47. Ra8 {[%emt 0:00:00]} Nh5 {[%emt 0:00:00]} 48. Rxc8 {[%emt 0:01:04]} Nxg3 {[%emt 0:00:00]} 49. Kxg3 {[%emt 0:00:07]} Qf4+ {[%emt 0:00:00]} 50. Kg2 {[%emt 0:00:25]} Rf7 {[%emt 0:00:00]} 51. Kh1 {[%emt 0:05:09]} Qg3 {[%emt 0:00:00]} 52. Rc7 {[%emt 0:00:52]} Qxh4+ {[%emt 0:00:00]} 53. Kg1 {[%emt 0:00:24]} Qf2+ {[%emt 0:00:00]} 54. Kh1 {[%emt 0:00:07]} Rf6 {[%emt 0:00:00]} 55. Rxg7+ {[%emt 0:00:18]} Kxg7 {[%emt 0:00:00]} 56. Qc7+ {[%emt 0:00:18]} Kg6 {[%emt 0:00:00]} 57. Qc8 {[%emt 0:03:32]} Kg5 {[%emt 0:00:00]} 58. Qg8+ {[%emt 0:00:38]} Kf4 {[%emt 0:00:00]} 59. Qg7 {[%emt 0:00:28]} Kg3 {[%emt 0:00:00]} 0-1

[Event "FIDE WSTC Open 65 2025"]
[Site "Prague"]
[Date "2025.02.20"]
[Round "4.46"]
[White "Wallace, John Paul"]
[Black "Svanda, Pavel"]
[Result "1/2-1/2"]
[Annotator "RC"]
[ECO "C43"]
[WhiteElo "2351"]
[BlackElo "2080"]
[PlyCount "112"]
[EventDate "2025.02.17"]
[EventType "team-tourn"]
[EventCountry "CZE"]
[SourceTitle "playchess.com"]
[Source "ChessBase"]
[SourceQuality "1"]
[TimeControl "40/5400+30:1800+30"]

1. e4 {[%emt 0:00:04]} e5 {[%emt 0:00:15]} 2. Nf3 {[%emt 0:00:53]} Nf6 {[%emt 0:00:22]} 3. Nxe5 {[%emt 0:02:07]} d6 {[%emt 0:00:07]} 4. Nf3 {[%emt 0:00:04]} Nxe4 {[%emt 0:00:05]} 5. d4 {[%emt 0:00:10]} d5 {[%emt 0:01:05]} 6. Bd3 {[%emt 0:00:12]} Be7 {[%emt 0:00:56]} 7. O-O {[%emt 0:00:12]} O-O {[%emt 0:01:04]} 8. c4 {[%emt 0:00:25]} Nf6 {[%emt 0:01:39]} 9. Nc3 {[%emt 0:01:42]} c6 {[%emt 0:03:20]} 10. Ne5 {[%emt 0:02:29]} Nbd7 {[%emt 0:01:47]} 11. Bf4 {[%emt 0:01:21]} dxc4 {[%emt 0:01:19]} 12. Nxd7 {[%emt 0:03:40]} Bxd7 {[%emt 0:03:02]} 13. Bxc4 {[%emt 0:00:07]} Bg4 {[%emt 0:07:47]} 14. Qd3 {[%emt 0:06:50]} Nd5 {[%emt 0:03:12]} 15. Bxd5 {[%emt 0:02:22]} cxd5 {[%emt 0:00:08]} 16. Qb5 {[%emt 0:00:23]} Bf6 {[%emt 0:27:03]} 17. Nxd5 {[%emt 0:16:08]} Bxd4 {[%emt 0:01:48]} 18. Qxb7 {[%emt 0:02:15]} Bxb2 {[%emt 0:14:04]} 19. Rab1 {[%emt 0:00:14]} Ba3 {[%emt 0:01:58]} 20. h3 {[%emt 0:12:24]} Bf5 {[%emt 0:09:33]} 21. Rb3 {[%emt 0:11:20]} Be4 {[%emt 0:01:39]} 22. Nf6+ {[%emt 0:08:59]} Qxf6 {[%emt 0:00:10]} 23. Qxe4 {[%emt 0:00:06]} Rfe8 {[%emt 0:03:57]} 24. Qa4 {[%emt 0:09:47]} Bc5 {[%emt 0:01:54]} 25. Rf3 {[%emt 0:03:02]} Qe7 {[%emt 0:04:06]} 26. Be3 {[%emt 0:00:23]} Bb6 {[%emt 0:02:24]} 27. Rb1 {[%emt 0:03:39]} Red8 {[%emt 0:02:29]} 28. Qg4 {[%emt 0:05:04]} Bxe3 {[%emt 0:02:55]} 29. Rxe3 {[%emt 0:00:18]} Qd7 {[%emt 0:00:10]} 30. Qf3 {[%emt 0:04:56]} Rab8 {[%emt 0:02:16]} 31. Reb3 {[%emt 0:00:19]} Rxb3 {[%emt 0:00:10]} 32. Rxb3 {[%emt 0:00:11]} g6 {[%emt 0:01:23]} 33. Rb7 {[%emt 0:00:20]} Qd1+ {[%emt 0:00:09]} 34. Qxd1 {[%emt 0:00:11]} Rxd1+ {[%emt 0:00:04]} 35. Kh2 {[%emt 0:00:03]} Rd2 {[%emt 0:00:15]} 36. Rxa7 {[%emt 0:00:07]} Rxf2 {[%emt 0:00:03]} 37. Kg3 {[%emt 0:00:29]} Rc2 {[%emt 0:00:22]} 38. h4 {[%emt 0:00:16]} Kg7 {[%emt 0:00:39]} 39. Kf3 {[%emt 0:01:18]} h5 {[%emt 0:00:21]} 40. Ra4 {[%emt 0:01:22]} Rc3+ {[%emt 0:01:32]} 41. Kf4 {[%emt 0:32:51]} Rc2 {[%emt 0:31:04]} 42. g3 {[%emt 0:00:23]} Rb2 {[%emt 0:01:11]} 43. Ra3 {[%emt 0:00:00]} Re2 {[%emt 0:00:00]} 44. Kf3 {[%emt 0:00:00]} Re1 {[%emt 0:00:00]} 45. Re3 {[%emt 0:00:00]} Ra1 {[%emt 0:00:00]} 46. a3 {[%emt 0:00:00]} f6 {[%emt 0:00:00]} 47. Ke4 {[%emt 0:00:00]} Kh6 {[%emt 0:00:00]} 48. Rf3 {[%emt 0:00:00]} Kg7 {[%emt 0:00:00]} 49. Rb3 {[%emt 0:00:00]} Kh6 {[%emt 0:00:00]} 50. Rf3 {[%emt 0:00:00]} Kg7 {[%emt 0:00:00]} 51. Kd5 {[%emt 0:00:00]} g5 {[%emt 0:00:00]} 52. hxg5 {[%emt 0:00:00]} fxg5 {[%emt 0:00:00]} 53. Ke6 {[%emt 0:00:00]} g4 {[%emt 0:00:00]} 54. Rf7+ {[%emt 0:00:00]} Kg6 {[%emt 0:00:00]} 55. Rf6+ {[%emt 0:00:00]} Kg5 {[%emt 0:00:00]} 56. Rf5+ {[%emt 0:00:00]} Kg6 {[%emt 0:00:00]} 1/2-1/2

[Event "FIDE WSTC Open 65 2025"]
[Site "Prague"]
[Date "2025.02.20"]
[Round "4.47"]
[White "Nemec, Pavel"]
[Black "Smith, Andrew Philip"]
[Result "1-0"]
[Annotator "ChessBase"]
[ECO "C60"]
[WhiteElo "2117"]
[BlackElo "2117"]
[PlyCount "97"]
[EventDate "2025.02.17"]
[EventType "team-tourn"]
[EventCountry "CZE"]
[SourceTitle "playchess.com"]
[Source "ChessBase"]
[SourceQuality "1"]
[TimeControl "40/5400+30:1800+30"]

1. e4 {[%emt 0:00:04]} e5 {[%emt 0:06:40]} 2. Nf3 {[%emt 0:00:09]} Nc6 {[%emt 0:00:07]} 3. Bb5 {[%emt 0:00:07]} g6 {[%emt 0:00:31]} 4. d3 {[%emt 0:09:24]} Nge7 {[%emt 0:03:13]} 5. Nc3 {[%emt 0:00:17]} Bg7 {[%emt 0:03:58]} 6. h4 {[%emt 0:06:24]} h6 7. h5 {[%emt 0:12:15]} g5 {[%emt 0:01:27]} 8. Nxg5 {[%emt 0:00:00]} hxg5 {[%emt 0:03:12]} 9. Bxg5 {[%emt 0:02:32]} f6 {[%emt 0:02:51]} 10. h6 {[%emt 0:30:14]} Ng8 {[%emt 0:37:36]} 11. Qh5+ {[%emt 0:00:00]} Ke7 {[%emt 0:00:12]} 12. Qg6 {[%emt 0:01:12]} Qf8 {[%emt 0:08:29]} 13. hxg7 {[%emt 0:00:00]} Rxh1+ {[%emt 0:00:19]} 14. Kd2 {[%emt 0:00:00]} Qf7 {[%emt 0:14:37]} 15. Nd5+ {[%emt 0:00:00]} Ke8 {[%emt 0:00:21]} 16. Nxc7+ {[%emt 0:00:00]} Ke7 {[%emt 0:00:08]} 17. Qxf7+ {[%emt 0:00:00]} Kxf7 {[%emt 0:00:07]} 18. Rxh1 {[%emt 0:00:00]} Rb8 {[%emt 0:00:43]} 19. Bc4+ {[%emt 0:00:00]} Kxg7 {[%emt 0:00:13]} 20. Ne8+ {[%emt 0:00:00]} Kg6 {[%emt 0:00:34]} 21. Be3 {[%emt 0:00:00]} Nce7 {[%emt 0:03:11]} 22. f4 {[%emt 0:00:00]} d5 {[%emt 0:02:12]} 23. exd5 {[%emt 0:00:00]} b5 {[%emt 0:02:16]} 24. Bb3 {[%emt 0:00:00]} Bb7 {[%emt 0:01:58]} 25. Nc7 {[%emt 0:00:00]} a6 {[%emt 0:04:20]} 26. g4 {[%emt 0:03:40]} exf4 {[%emt 0:01:00]} 27. Bxf4 {[%emt 0:00:10]} Rd8 {[%emt 0:01:08]} 28. c4 {[%emt 0:00:21]} Bc8 {[%emt 0:01:08]} 29. Rh4 {[%emt 0:03:38]} b4 {[%emt 0:01:03]} 30. Bc2 {[%emt 0:01:58]} a5 {[%emt 0:00:59]} 31. Ne6 {[%emt 0:04:19]} Bxe6 {[%emt 0:00:32]} 32. dxe6 {[%emt 0:00:03]} Kg7 {[%emt 0:00:05]} 33. Rh5 {[%emt 0:05:57]} Ng6 {[%emt 0:01:12]} 34. Bc7 {[%emt 0:02:04]} Re8 {[%emt 0:00:02]} 35. Bxa5 {[%emt 0:00:49]} Rxe6 {[%emt 0:00:02]} 36. Bxb4 {[%emt 0:00:21]} Nh6 {[%emt 0:01:24]} 37. g5 {[%emt 0:01:58]} Ng4 {[%emt 0:00:38]} 38. gxf6+ {[%emt 0:00:18]} Kxf6 {[%emt 0:00:12]} 39. Bc3+ {[%emt 0:01:14]} Ke7 {[%emt 0:00:02]} 40. Bd1 {[%emt 0:03:57]} Ne3 {[%emt 0:01:09]} 41. Rh7+ {[%emt 0:30:38]} Kf8 {[%emt 0:02:57]} 42. Bd4 {[%emt 0:00:00]} Nf5 {[%emt 0:01:07]} 43. Bc5+ {[%emt 0:00:00]} Kg8 {[%emt 0:00:13]} 44. Rh5 {[%emt 0:00:00]} Ng3 {[%emt 0:01:08]} 45. Rg5 {[%emt 0:00:00]} Nf1+ {[%emt 0:01:06]} 46. Kc3 {[%emt 0:00:00]} Kh7 {[%emt 0:00:22]} 47. Bg4 {[%emt 0:00:00]} Rc6 {[%emt 0:03:13]} 48. Bd4 {[%emt 0:00:00]} Nf4 {[%emt 0:00:23]} 49. Rf5 {[%emt 0:00:00]} 1-0